bitfinex/quotes_ETHUSD_20260312
["timestamp","ask_amount","ask_price","bid_price","bid_amount"]
[1773314629687,0.46444618,2071.4,2071.2,0.001]
[1773314630378,0.002,2071.5,2071.2,0.47861705]
[1773314630572,0.002,2071.5,2071.2,0.47961705]
[1773314630771,0.46872002,2071.5,2071.2,0.002]
[1773314632589,1.20691319,2071.4,2071.2,0.47961705]
[1773314632806,1.20691319,2071.4,2071.3,0.001]
[1773314633162,0.46872002,2071.5,2071.3,0.001]
[1773314633368,1.67559042,2071.5,2071.4,0.001]
[1773314633568,1.67559042,2071.5,2071.3,0.001]
[1773314634298,0.46872002,2071.5,2071.3,0.001]
[1773314634594,0.002,2071.5,2071.4,0.001]
[1773314635100,1.20875389,2071.7,2071.4,0.47861705]
[1773314635270,1.20875389,2071.7,2071.5,0.001]
[1773314636272,1.20874155,2071.7,2071.5,0.47861705]
[1773314636980,1.20874155,2071.7,2071.5,0.001]
[1773314639719,0.46672002,2071.6,2071.5,0.001]
[1773314641193,1.67351669,2071.6,2071.5,0.001]
[1773314641408,0.46672002,2071.8,2071.5,0.47861705]
[1773314641586,1.67530209,2072.0,2071.6,0.47761705]
[1773314641781,0.46672002,2071.9,2071.6,0.001]
[1773314641987,0.46672002,2071.9,2071.3,1.68458676]
[1773314642186,0.46672002,2071.9,2071.3,0.47761705]
[1773314642410,0.46672002,2071.9,2071.3,1.68458377]
[1773314642715,0.46672002,2071.9,2071.4,0.47761705]
[1773314643410,1.20668018,2071.8,2071.4,1.68452382]
[1773314643597,1.6734002,2071.8,2071.4,0.47761705]
[1773314643782,0.46672002,2071.7,2071.3,1.68455084]
[1773314644288,0.46672002,2071.7,2071.4,0.001]
[1773314644704,0.46672002,2071.5,2071.4,0.001]
[1773314645415,0.46672002,2071.8,2071.5,0.47761705]
[1773314645593,0.002,2071.9,2071.5,0.47761705]
[1773314645594,1.67538638,2071.9,2071.5,0.47761705]
[1773314645794,0.002,2071.9,2071.5,0.47761705]
[1773314647693,1.67521028,2072.2,2071.7,0.47761705]
[1773314648590,0.46872002,2072.2,2071.7,0.47761705]
[1773314648789,1.67493443,2072.7,2072.2,0.47761705]
[1773314649023,1.67493443,2072.7,2072.1,0.47761705]
[1773314649024,1.20821441,2072.7,2072.1,0.47761705]
[1773314649220,1.67493443,2072.7,2072.1,0.47761705]
[1773314651288,1.67493443,2072.7,2072.2,0.47761705]
[1773314654225,1.67493443,2072.7,2072.2,1.6840516]
[1773314654405,1.67493443,2072.7,2072.2,0.47761705]
[1773314654801,1.67493443,2072.7,2072.3,0.47761705]
[1773314656726,1.20821441,2072.7,2072.4,0.47761705]
[1773314656929,0.002,2072.7,2072.4,0.47761705]
[1773314657509,1.20815843,2072.7,2072.4,0.47761705]
[1773314658500,0.002,2072.7,2072.4,0.47761705]
[1773314658701,0.002,2072.7,2072.4,1.68391473]
[1773314659001,0.002,2072.5,2072.4,1.68391473]
[1773314660703,0.002,2072.5,2072.4,0.47761705]
[1773314660904,0.002,2072.5,2072.2,1.70209652]
[1773314661332,0.002,2072.5,2072.3,0.49568685]
[1773314663230,0.002,2072.5,2072.3,1.70206083]
[1773314665033,0.002,2072.5,2072.4,0.49568685]
[1773314665502,0.002,2072.5,2072.4,1.70201767]
[1773314669536,0.002,2072.5,2072.3,1.20633694]
[1773314671008,0.47317856,2072.5,2072.4,0.001]
[1773314672335,0.002,2072.5,2072.4,0.001]
[1773314672935,0.47317856,2072.5,2072.4,0.001]
[1773314673730,0.002,2072.5,2072.4,0.001]
[1773314677347,0.002,2072.5,2072.1,0.001]
[1773314677348,0.47317856,2072.5,2072.1,0.001]
[1773314678040,0.47317856,2072.5,2072.1,1.20745908]
[1773314678239,0.002,2072.5,2072.2,0.49568685]
[1773314678549,0.47317856,2072.5,2072.2,0.49568685]
[1773314678739,0.47317856,2072.5,2072.1,1.20745908]
[1773314678935,0.47117856,2072.4,2072.1,0.001]
[1773314683138,0.47117856,2072.4,2072.3,0.001]
[1773314685366,1.67750938,2072.4,2072.3,0.001]
[1773314686957,0.47117856,2072.4,2072.3,0.001]
[1773314688364,1.67750938,2072.4,2072.3,0.001]
[1773314688666,0.47117856,2072.4,2072.3,0.001]
[1773314688965,1.67750938,2072.4,2072.3,0.001]
[1773314690462,1.67750938,2072.4,2072.1,0.001]
[1773314690463,1.20633082,2072.4,2072.1,0.001]
[1773314690670,0.47797768,2072.3,2072.1,0.001]
[1773314691837,1.68442493,2072.2,2072.1,0.001]
[1773314692873,0.47797768,2072.2,2072.1,0.001]
[1773314693745,1.68442493,2072.2,2072.1,0.001]
[1773314694550,0.47797768,2072.2,2072.1,0.001]
[1773314695981,1.68442493,2072.2,2072.1,0.001]
[1773314696875,1.68642493,2072.2,2072.1,0.001]
[1773314699477,0.47797768,2072.1,2072.0,0.001]
[1773314700118,1.68448315,2072.1,2072.0,0.001]
[1773314704774,1.68448315,2072.1,2071.8,0.001]
[1773314704974,0.47797768,2072.0,2071.8,0.001]
[1773314706261,1.20662194,2071.9,2071.8,0.001]
[1773314706575,1.68459962,2071.9,2071.8,0.001]
[1773314708360,0.47797768,2071.8,2071.5,0.46600934]
[1773314710050,0.002,2071.9,2071.5,0.46600934]
[1773314710255,0.002,2071.9,2071.6,0.46500934]
[1773314712459,0.47997768,2071.9,2071.5,0.46600934]
[1773314715598,1.20866716,2071.9,2071.5,0.46600934]
[1773314715898,1.68664484,2071.9,2071.5,0.46600934]
[1773314719994,0.47797768,2071.8,2071.5,0.46600934]
[1773314720289,0.47797768,2071.8,2071.4,0.001]
[1773314721260,0.48513907,2071.6,2071.4,0.001]
[1773314721685,1.69187749,2071.7,2071.4,0.49477026]
[1773314722603,1.69387749,2071.7,2071.4,0.49477026]
[1773314723090,1.69387749,2071.7,2071.5,0.001]
[1773314723290,0.002,2071.7,2071.5,0.49477026]
[1773314734695,0.48713907,2071.7,2071.5,0.001]
[1773314737010,0.002,2071.7,2071.5,0.001]
[1773314737521,0.002,2071.7,2071.5,0.49477026]
[1773314739408,1.69387749,2071.7,2071.5,0.001]
[1773314739606,0.48513907,2071.6,2071.5,0.001]
[1773314740188,1.69387749,2071.7,2071.5,0.001]
[1773314743729,0.48558609,2071.6,2071.5,0.001]
[1773314744730,0.002,2071.7,2071.5,0.001]
[1773314745226,0.002,2071.7,2071.5,0.4939905]
[1773314746701,1.20873842,2071.7,2071.5,0.4939905]
[1773314751933,0.002,2071.7,2071.5,0.4939905]
[1773314755033,0.48006564,2071.7,2071.5,0.001]
[1773314758513,1.6868607,2071.7,2071.5,0.001]
[1773314758731,1.2087495,2071.7,2071.5,0.001]
[1773314758941,0.002,2071.7,2071.5,0.49256143]
[1773314759238,1.2087396,2071.7,2071.5,0.49256143]
[1773314760244,0.002,2071.7,2071.5,0.49256143]
[1773314761138,0.002,2071.7,2071.5,1.6994043]
[1773314761449,0.002,2071.7,2071.5,0.49256143]
[1773314761616,0.002,2071.7,2071.5,0.001]
[1773314762122,0.002,2071.7,2071.5,0.49256143]
[1773314764436,0.002,2071.7,2071.5,1.69939797]
[1773314764637,0.002,2071.9,2071.7,0.49156143]
[1773314765960,0.002,2071.9,2071.8,1.69824161]
[1773314770123,0.002,2072.0,2071.8,1.69824161]
[1773314770124,0.002,2072.0,2071.8,1.20668018]
[1773314770320,0.002,2072.0,2071.9,1.69818337]
[1773314770721,0.002,2072.0,2071.9,0.49156143]
[1773314771547,0.002,2072.0,2071.8,1.20663705]
[1773314772225,0.002,2072.0,2071.7,1.69926861]
[1773314772734,0.002,2071.9,2071.7,1.69926861]
[1773314783458,0.002,2071.9,2071.7,3.99326861]
[1773314784166,0.002,2072.0,2071.8,0.48632959]
[1773314784454,0.002,2072.0,2071.9,0.001]
[1773314787364,0.002,2072.7,2072.0,0.48632959]
[1773314787542,0.002,2073.0,2072.7,0.48632959]
[1773314787747,0.002,2072.9,2072.7,0.48632959]
[1773314789566,0.002,2072.9,2072.8,0.48632959]
[1773314789861,0.002,2073.0,2072.8,0.48632959]
[1773314792690,0.46875531,2073.0,2072.4,0.48632959]
[1773314792967,0.46675531,2072.7,2072.2,0.48632959]
[1773314793140,0.46675531,2072.7,2072.2,2.78632959]
[1773314793551,0.46675531,2072.5,2072.2,0.48632959]
[1773314793755,0.46675531,2072.5,2071.9,0.64846725]
[1773314793756,0.46675531,2072.5,2071.9,0.001]
[1773314793951,0.46675531,2072.3,2071.9,0.001]
[1773314795741,0.46675531,2072.1,2071.9,0.001]
[1773314796575,0.46875531,2072.1,2071.9,0.001]
[1773314797761,0.002,2072.1,2071.9,0.48732959]
[1773314797970,0.002,2072.3,2072.0,0.48632959]
[1773314800667,0.002,2072.3,2072.1,0.48632959]
[1773314801563,0.002,2072.3,2072.0,1.20655239]
[1773314801564,0.46875531,2072.3,2071.9,0.64846725]
[1773314801765,0.46675531,2072.2,2071.9,0.001]
[1773314801967,0.46675531,2072.2,2071.7,0.001]
[1773314801968,0.46675531,2072.0,2071.7,0.001]
[1773314802479,1.20650547,2072.1,2071.4,0.001]
[1773314802480,0.46675531,2071.8,2071.4,0.001]
[1773314802656,0.46675531,2071.8,2071.3,0.001]
[1773314802859,0.46675531,2071.6,2071.3,0.001]
[1773314803254,0.46675531,2071.6,2071.1,0.001]
[1773314803964,0.48689418,2071.4,2071.1,0.001]
[1773314804952,1.20685493,2071.5,2070.9,2.31250071]
[1773314804953,0.48689418,2071.2,2070.9,2.31250071]
[1773314805160,0.48689418,2071.0,2070.5,0.001]
[1773314805985,1.20720459,2070.9,2070.5,0.001]
[1773314806189,0.48689418,2070.8,2070.5,0.001]
[1773314806360,0.48689418,2070.6,2070.3,0.001]
[1773314807377,0.48689418,2070.6,2070.0,0.001]
[1773314807579,0.48689418,2070.4,2070.0,0.001]
[1773314808078,0.48689418,2070.2,2070.0,0.001]
[1773314810380,0.49641872,2070.1,2070.0,0.001]
[1773314810586,1.20761739,2070.2,2070.0,0.001]
[1773314810880,0.49641872,2070.1,2070.0,0.001]
[1773314811882,0.49641872,2070.1,2069.3,0.49048098]
[1773314812482,0.49641872,2069.9,2069.4,0.49048098]
[1773314812732,4.83091787,2070.1,2069.4,0.49048098]
[1773314812733,1.70413096,2070.1,2069.4,0.49048098]
[1773314813389,0.49641872,2070.0,2069.5,0.49048098]
[1773314813694,0.49641872,2070.0,2069.3,1.69858628]
[1773314814198,0.49641872,2070.0,2069.3,0.49048098]
[1773314814358,0.49641872,2069.8,2069.3,0.49048098]
[1773314814562,0.49641872,2069.8,2069.3,1.69861136]
[1773314815588,0.49641872,2069.8,2069.3,0.49048098]
[1773314815758,0.49641872,2069.8,2069.3,1.69861062]
[1773314816161,0.49641872,2069.8,2069.3,0.49048098]
[1773314816596,1.70432324,2069.7,2069.3,0.49048098]
[1773314817273,1.70432324,2069.7,2069.3,1.69861813]
[1773314817476,0.49641872,2069.7,2069.3,1.69861813]
[1773314817675,0.49641872,2069.7,2069.3,0.49048098]
[1773314817890,0.49641872,2069.7,2069.1,1.20825077]
[1773314818195,0.49641872,2069.7,2069.2,0.49048098]
[1773314818581,1.20796289,2069.6,2069.2,0.49048098]
[1773314820594,1.20796289,2069.6,2069.2,1.69867338]
[1773314821194,1.7043672,2069.7,2069.3,0.49048098]
[1773314821583,0.49641872,2069.6,2069.1,0.49048098]
[1773314821893,0.49641872,2069.6,2068.8,0.49048098]
[1773314822797,1.70443998,2069.5,2069.0,0.49048098]
[1773314823002,1.70443998,2069.5,2068.8,0.49048098]
[1773314823003,0.49641872,2069.4,2068.8,0.49048098]
[1773314823184,0.49641872,2069.3,2068.5,1.69906126]
[1773314823774,0.49641872,2069.3,2068.6,0.49048098]
[1773314824005,4.83176384,2069.7,2068.8,0.49048098]
[1773314824006,1.70433429,2069.7,2068.8,0.49048098]
[1773314824410,0.49641872,2069.6,2069.4,0.001]
[1773314824782,1.70443523,2069.6,2069.4,0.001]
[1773314826809,1.70443523,2069.6,2069.1,1.20922519]
[1773314826810,0.49641872,2069.5,2069.1,0.001]
[1773314829020,1.20807963,2069.4,2069.1,0.001]
[1773314829514,1.70449835,2069.4,2069.1,0.001]
[1773314830094,0.49641872,2069.3,2068.9,0.001]
[1773314830411,1.20807963,2069.4,2069.0,0.001]
[1773314830600,1.20807963,2069.4,2069.0,0.49148098]
[1773314830988,0.49641872,2069.4,2069.0,0.49148098]
[1773314831413,0.49641872,2069.4,2068.8,0.49048098]
[1773314831590,0.49641872,2069.4,2068.9,0.002]
[1773314833796,1.70455673,2069.3,2068.9,0.002]
[1773314834004,1.70455673,2069.3,2068.9,0.49248098]
[1773314834192,0.49641872,2069.2,2068.9,0.002]
[1773314834515,0.49641872,2069.2,2068.8,1.69888004]
[1773314834516,0.49641872,2069.8,2069.1,0.49048098]
[1773314836518,0.49641872,2069.5,2069.2,0.002]
[1773314836723,0.49641872,2069.5,2068.9,0.49248098]
[1773314837089,0.49641872,2069.5,2068.8,0.49048098]
[1773314838316,0.49641872,2069.5,2069.0,0.001]
[1773314838712,1.70449835,2069.4,2069.0,0.001]
[1773314839315,0.49641872,2069.3,2069.0,0.001]
[1773314841205,0.45523428,2069.1,2068.8,0.001]
[1773314841900,1.66342041,2069.3,2068.8,0.001]
[1773314842106,1.66342041,2069.3,2068.8,0.45588804]
[1773314843904,1.66342041,2069.3,2068.8,1.66431498]
[1773314844105,1.66342041,2069.3,2068.8,0.45588804]
[1773314844556,1.66342041,2069.3,2068.8,0.001]
[1773314844557,0.45523428,2069.2,2068.8,0.001]
[1773314844864,0.45523428,2069.2,2068.5,0.001]
[1773314844865,0.45523428,2068.8,2066.7,5.76547304]
[1773314845008,4.86683265,2069.0,2067.5,0.45488804]
[1773314845009,0.45523428,2068.2,2067.5,0.45488804]
[1773314845330,0.45523428,2068.2,2067.4,1.20922015]
[1773314845331,0.45523428,2068.2,2067.4,0.001]
[1773314845550,2.393,2068.7,2067.6,0.45488804]
[1773314845551,0.45523428,2068.6,2067.6,0.45488804]
[1773314845706,2.393,2068.7,2067.4,0.001]
[1773314845707,0.45523428,2067.9,2067.4,0.001]
[1773314845906,1.20893057,2068.0,2067.4,0.45588804]
[1773314846218,4.8348372,2068.4,2067.6,0.45488804]
[1773314846219,0.45523428,2068.4,2067.6,0.45488804]
[1773314846729,4.83445304,2068.5,2067.6,0.001]
[1773314846730,0.45523428,2068.0,2067.6,0.001]
[1773314847105,0.45523428,2068.0,2066.9,0.45488804]
[1773314847106,0.45523428,2067.6,2066.9,0.45488804]
[1773314847318,0.45523428,2067.9,2067.0,0.45488804]
[1773314847908,0.45523428,2067.7,2067.0,0.45488804]
[1773314848437,0.45523428,2067.7,2067.0,1.66435545]
[1773314848828,0.45523428,2067.7,2067.0,0.45488804]
[1773314849147,1.20898211,2067.9,2066.9,0.45488804]
[1773314849436,1.66421639,2067.9,2066.9,0.45488804]
[1773314849606,0.45523428,2067.8,2066.9,0.45488804]
[1773314849805,0.45523428,2067.8,2067.1,0.45488804]
[1773314850022,1.66425077,2067.8,2067.1,0.45488804]
[1773314850274,1.20892849,2068.0,2067.2,1.62227755]
[1773314850426,1.66404538,2068.2,2067.3,0.45488804]
[1773314850642,1.2088111,2068.2,2067.3,0.45488804]
[1773314850813,1.2088111,2068.2,2067.0,4.45403744]
[1773314850814,1.20875157,2068.3,2067.5,0.45488804]
[1773314851014,1.20865549,2068.5,2067.5,0.45488804]
[1773314851415,1.66360587,2068.9,2067.9,0.45488804]
[1773314852126,0.45523428,2068.8,2068.1,0.45488804]
[1773314852435,0.45523428,2068.6,2067.8,1.66387596]
[1773314852637,2.83064914,2068.9,2067.3,4.83817434]
[1773314852638,0.45523428,2068.4,2067.5,1.66503118]
[1773314853006,2.83064914,2068.9,2067.6,0.45488804]
[1773314853007,0.45523428,2068.7,2067.6,0.45488804]
[1773314853722,0.45523428,2068.7,2067.7,0.45488804]
[1773314854149,4.83385927,2068.8,2067.9,0.45488804]
[1773314854741,5.28909355,2068.8,2067.9,0.45488804]
[1773314855443,0.45523428,2068.7,2067.9,0.45488804]
[1773314856347,1.20854684,2068.6,2068.0,1.20889748]
[1773314856840,1.66354747,2069.0,2068.1,0.45488804]
[1773314857143,0.45523428,2068.9,2068.1,0.45488804]
[1773314858215,0.45523428,2068.7,2068.1,1.66371893]
[1773314858517,0.45523428,2068.7,2068.1,0.45488804]
[1773314858717,0.45523428,2068.7,2068.1,1.66372476]
[1773314859719,0.45523428,2068.7,2068.1,0.45488804]
[1773314859926,0.45523428,2068.7,2068.1,1.6637253]
[1773314861754,4.83372658,2068.8,2068.2,0.45488804]
[1773314862621,5.28896086,2068.8,2068.2,0.45488804]
[1773314863024,0.45523428,2068.7,2068.0,0.45488804]
[1773314864153,1.20854684,2068.6,2068.0,0.45488804]
[1773314864453,1.69188511,2068.6,2068.0,1.6637801]
[1773314864833,1.69188511,2068.6,2068.0,0.45488804]
[1773314865038,0.48333827,2068.5,2067.8,1.20897562]
[1773314865428,0.48333827,2068.5,2067.8,0.48913947]
[1773314865629,0.48533827,2068.7,2067.8,0.48913947]
[1773314865829,1.21048955,2068.7,2068.0,0.48913947]
[1773314866134,0.002,2068.7,2068.1,1.20883903]
[1773314866354,0.002,2068.7,2068.2,0.48913947]
[1773314867056,5.31885864,2068.9,2068.2,0.48913947]
[1773314867057,1.21039815,2068.9,2068.2,0.48913947]
[1773314867260,0.002,2068.9,2068.2,0.48913947]
[1773314868460,0.002,2068.9,2068.4,0.48913947]
[1773314870060,4.83479256,2069.2,2068.6,0.48913947]
[1773314870061,0.002,2069.2,2068.6,0.48913947]
[1773314870265,1.21020228,2069.2,2068.6,0.48913947]
[1773314870437,1.21020228,2069.2,2068.7,1.69901849]
[1773314871066,0.002,2069.2,2068.8,0.49053007]
[1773314872447,0.002,2069.2,2068.8,1.69893376]
[1773314873259,0.002,2069.2,2068.8,0.49053007]
[1773314873433,0.002,2069.2,2068.8,1.69894866]
[1773314874143,0.002,2069.2,2068.8,0.49053007]
[1773314874457,0.002,2069.2,2068.8,1.69894472]
[1773314877438,0.002,2069.2,2068.8,0.49053007]
[1773314877762,0.47535431,2069.2,2068.6,1.69903516]
[1773314877965,0.47535431,2069.2,2068.7,0.49053007]
[1773314878474,0.002,2069.0,2068.7,0.49053007]
[1773314878764,0.002,2069.0,2068.7,1.69897577]
[1773314879166,0.002,2069.0,2068.7,1.2084457]
[1773314879465,0.002,2069.0,2068.8,0.49053007]
[1773314881462,0.002,2069.2,2068.9,0.49053007]
[1773314881668,0.002,2069.4,2068.9,0.49053007]
[1773314882863,0.002,2069.4,2069.0,1.69884326]
[1773314884963,0.002,2069.4,2069.1,0.49053007]
[1773314886960,0.47535431,2069.4,2069.0,1.20831319]
[1773314888274,0.47535431,2069.4,2069.0,1.69884326]
[1773314889570,0.002,2069.4,2069.1,0.49053007]
[1773314891676,0.002,2069.4,2069.2,0.001]
[1773314892054,0.002,2069.4,2069.2,0.49153007]
[1773314892989,0.002,2069.4,2069.2,0.001]
[1773314892990,0.47535431,2069.4,2069.2,0.001]
[1773314893280,0.47535431,2069.4,2069.0,0.001]
[1773314894278,0.47335431,2069.2,2069.0,0.001]
[1773314894449,0.47335431,2069.2,2068.7,0.001]
[1773314895144,0.47335431,2069.2,2068.7,0.002]
[1773314896775,0.47335431,2069.0,2068.7,0.002]
[1773314898785,1.68170287,2069.0,2068.7,0.002]
[1773314900758,1.69917231,2068.8,2068.7,0.002]
[1773314902063,1.69917231,2068.8,2068.7,0.001]
[1773314902264,0.49074231,2068.8,2068.7,0.001]
[1773314902599,1.20840973,2068.9,2068.7,0.001]
[1773314902851,4.83279136,2069.2,2068.8,0.45123324]
[1773314902852,1.2082451,2069.2,2068.8,0.45123324]
[1773314903088,5.3235056,2069.3,2068.8,0.45123324]
[1773314903089,1.69890562,2069.3,2068.8,0.45123324]
[1773314903294,1.69890562,2069.3,2068.9,0.001]
[1773314903295,1.6989179,2069.3,2068.9,0.001]
[1773314904991,1.20814451,2069.3,2069.0,0.45123324]
[1773314905197,1.21011958,2069.4,2069.0,0.45123324]
[1773314905359,1.70086189,2069.4,2069.0,0.45123324]
[1773314905772,1.70087187,2069.4,2069.0,0.45123324]
[1773314905978,0.002,2069.1,2069.0,0.45123324]
[1773314907397,0.001,2069.1,2069.0,1.65854643]
[1773314908103,0.001,2069.1,2069.0,0.45023324]
[1773314913479,0.49174231,2069.1,2068.9,0.001]
[1773314913902,0.49074231,2069.0,2068.9,0.001]
[1773314914104,0.001,2069.1,2068.9,0.001]
[1773314914409,1.20926627,2069.1,2068.9,0.001]
[1773314914994,0.001,2069.1,2068.9,0.001]
[1773314915199,1.20925848,2069.1,2068.9,0.001]
[1773314915495,0.001,2069.1,2068.9,0.001]
[1773314915673,1.20926117,2069.1,2068.9,0.001]
[1773314918025,0.001,2069.1,2068.9,0.45123324]
[1773314918204,0.002,2069.3,2069.0,0.45023324]
[1773314918405,0.002,2069.5,2069.2,0.45023324]
[1773314918812,0.002,2069.6,2069.1,0.45023324]
[1773314919321,0.002,2069.6,2069.1,0.45123324]
[1773314920098,0.002,2069.6,2069.3,0.45023324]
[1773314920099,0.002,2069.4,2069.3,0.45023324]
[1773314923206,0.002,2069.4,2069.3,1.65837125]
[1773314925449,0.002,2069.4,2069.2,1.20815065]
[1773314925842,0.002,2069.4,2069.2,1.69977055]
[1773314926255,0.002,2069.4,2069.3,0.4916199]
[1773314927343,0.002,2069.6,2069.4,0.4916199]
[1773314933342,0.4887048,2069.6,2069.4,0.001]
[1773314935242,0.002,2069.6,2069.4,0.49737106]
[1773314937073,0.002,2069.7,2069.5,0.49637106]
[1773314937227,0.002,2069.8,2069.6,1.20796289]
[1773314937562,0.002,2069.8,2069.6,1.70433395]
[1773314938845,0.002,2069.8,2069.7,0.49637106]
[1773314939644,0.002,2069.8,2069.7,1.70427558]
[1773314939849,0.002,2070.0,2069.8,0.49637106]
[1773314942175,0.002,2070.0,2069.4,1.20907545]
[1773314942176,0.4867048,2069.9,2069.4,1.20907545]
[1773314942549,0.4867048,2069.9,2069.4,1.20907398]
[1773314943067,0.4867048,2069.9,2069.4,0.001]
[1773314944268,0.4867048,2069.8,2069.4,0.001]
[1773314944566,0.4867048,2069.8,2069.4,0.20338724]
[1773314944965,4.83315126,2070.0,2069.4,0.20338724]
[1773314944966,1.20973121,2070.0,2069.4,0.20338724]
[1773314945165,0.4867048,2069.9,2069.4,0.20338724]
[1773314945664,0.002,2069.6,2069.4,0.001]
[1773314945863,0.4887048,2069.6,2069.4,0.001]
[1773314946234,0.002,2069.8,2069.5,0.20338724]
[1773314947763,0.002,2070.0,2069.7,0.20338724]
[1773314948356,0.4887048,2070.0,2069.8,1.20784616]
[1773314951872,0.4887048,2070.0,2069.7,1.41125258]
[1773314952175,0.4887048,2070.0,2069.5,0.20338724]
[1773314952176,0.4867048,2069.9,2069.5,0.20338724]
[1773314952349,0.4867048,2069.8,2069.5,1.20800913]
[1773314954273,0.4867048,2069.7,2069.4,1.20906062]
[1773314956480,0.4867048,2069.7,2069.4,1.41585204]
[1773314957281,1.69453613,2069.9,2069.5,0.19340812]
[1773314957476,0.4867048,2069.8,2069.5,0.19340812]
[1773314957676,0.4867048,2069.7,2069.4,1.20906062]
[1773314957880,0.4867048,2069.7,2069.4,0.001]
[1773314958279,0.4867048,2069.7,2069.6,0.001]
[1773314960585,0.47664227,2069.8,2069.6,0.001]
[1773314961179,0.002,2069.8,2069.6,0.001]
[1773314961889,0.002,2069.8,2069.6,0.19440812]
[1773314962387,0.002,2070.0,2069.8,0.19140812]
[1773314965101,0.002,2070.0,2069.8,1.39921964]
[1773314966001,0.002,2070.0,2069.9,0.19140812]
[1773314967207,0.002,2070.0,2069.8,0.19140812]
[1773314967510,0.47664227,2070.0,2069.6,1.20896248]
[1773314967680,0.47664227,2070.0,2069.6,0.001]
[1773314968879,0.47664227,2070.0,2069.6,1.20895472]
[1773314969280,0.47664227,2070.0,2069.6,1.40036284]
[1773314969706,1.68437352,2070.0,2069.6,1.40036284]
[1773314969909,1.20973125,2070.0,2069.6,1.40036284]
[1773314970206,0.47464227,2069.9,2069.6,1.40036284]
[1773314970917,0.47464227,2069.9,2069.8,0.001]
[1773314971693,1.68437352,2070.0,2069.8,0.001]
[1773314971893,0.47464227,2069.9,2069.8,0.001]
[1773314973828,0.47664227,2070.0,2069.8,0.001]
[1773314975698,1.68437206,2070.0,2069.8,0.001]
[1773314976629,0.47464227,2069.9,2069.8,0.001]
[1773314982331,1.68243008,2069.9,2069.8,0.001]
[1773314982535,0.47464227,2069.8,2069.6,0.001]
[1773314984016,0.002,2070.0,2069.8,0.19240812]
[1773314984425,0.002,2070.0,2069.8,0.19340812]
[1773314985854,0.002,2070.3,2070.1,0.19240812]
[1773314987549,1.20727909,2070.8,2070.1,0.19240812]
[1773314987550,0.46837091,2071.0,2070.3,0.19240812]
[1773314987751,0.46837091,2071.0,2070.5,0.19240812]
[1773314988452,0.46837091,2071.0,2070.6,1.39978762]
[1773314988628,1.20708938,2071.1,2070.7,0.19240812]
[1773314988957,0.46837091,2071.0,2070.6,1.2073795]
[1773314989138,1.20708938,2071.1,2070.6,1.2073795]
[1773314989139,0.46837091,2071.5,2070.7,0.19240812]
[1773314990354,0.46291584,2071.3,2070.8,1.39967101]
[1773314991154,0.46291584,2071.5,2071.1,0.19240812]
[1773314991455,0.46291584,2071.4,2071.1,0.19240812]
[1773314991848,0.46291584,2071.4,2070.8,1.20726289]
[1773314992158,0.46291584,2071.4,2070.8,1.39967101]
[1773314993068,0.46291584,2071.7,2071.1,0.19240812]
[1773314995046,0.46291584,2071.5,2071.1,1.39949237]
[1773314995848,0.46291584,2071.9,2071.3,0.19240812]
[1773314996885,0.002,2071.5,2071.1,1.39949237]
[1773314997072,0.46491584,2071.5,2071.1,0.19240812]
[1773314997390,0.46491584,2071.5,2071.0,1.20713791]
[1773314997591,0.46491584,2071.5,2071.0,1.39954603]
[1773314998715,0.46491584,2071.5,2070.8,1.40066452]
[1773314999001,0.46291584,2071.3,2070.8,0.001]
[1773314999300,0.46291584,2071.3,2070.8,0.19340812]
[1773315000197,0.46291584,2071.3,2070.8,0.001]
[1773315000398,0.46291584,2071.3,2070.5,1.20841251]
[1773315000771,0.46291584,2071.3,2070.6,0.19240812]
[1773315001897,0.46291584,2071.2,2070.8,0.19240812]
[1773315002197,0.46291584,2071.2,2070.5,1.20838715]
[1773315002693,0.46291584,2071.2,2070.5,1.40079527]
[1773315002992,0.46291584,2071.2,2070.7,0.8275701]
[1773315004297,1.66994676,2071.2,2070.8,1.20726289]
[1773315004497,1.66995042,2071.2,2070.8,1.20726289]
[1773315004668,0.46291584,2071.2,2070.8,1.20726289]
[1773315006699,1.66995144,2071.2,2070.8,1.20726289]
[1773315006872,0.46291584,2071.1,2070.7,1.20728961]
[1773315007471,0.46291584,2071.1,2070.7,1.38631443]
[1773315007896,0.46291584,2071.1,2070.8,0.17902482]
[1773315009601,0.46291584,2071.1,2070.8,1.38628235]
[1773315010002,0.46291584,2071.1,2071.0,0.001]
[1773315013999,0.002,2071.5,2071.1,0.17902482]
[1773315014196,0.002,2071.5,2071.0,0.64880007]
[1773315014197,0.46291584,2071.8,2071.3,0.17902482]
[1773315014414,0.46491584,2072.0,2071.5,0.17902482]
[1773315015819,1.67148024,2072.0,2071.6,1.20679667]
[1773315016207,0.46491584,2072.0,2071.6,1.20679667]
[1773315016616,0.46491584,2072.0,2071.6,1.38582149]
[1773315016817,0.46291584,2072.2,2071.7,0.17902482]
[1773315017118,0.002,2072.3,2071.7,0.17902482]
[1773315018320,0.002,2072.3,2071.9,0.17902482]
[1773315020099,0.46491584,2072.3,2072.0,1.2065637]
[1773315020301,0.46491584,2072.3,2071.8,0.17902482]
[1773315020918,0.002,2072.3,2071.8,0.17902482]
[1773315021918,5.3149322,2072.5,2071.8,0.17702482]
[1773315021919,0.48982914,2072.5,2071.8,0.17702482]
[1773315022123,0.48982914,2072.3,2071.6,3.66677712]
[1773315022321,0.48982914,2072.3,2071.7,1.7952124]
[1773315022502,0.48982914,2072.3,2071.8,0.17702482]
[1773315022706,1.20631151,2072.5,2072.0,0.17702482]
[1773315022707,0.48982914,2072.5,2072.0,0.17702482]
[1773315022902,0.002,2072.6,2072.2,0.17702482]
[1773315023395,0.48982914,2072.9,2072.4,0.17702482]
[1773315023595,4.82380466,2073.1,2072.1,0.17702482]
[1773315023596,0.48982914,2072.8,2072.1,0.17702482]
[1773315024211,0.48982914,2072.7,2072.2,1.38347207]
[1773315024410,0.002,2072.4,2072.2,1.38347207]
[1773315024614,0.002,2072.4,2072.1,3.49049765]
[1773315024802,0.002,2072.4,2072.1,1.20749765]
[1773315025121,0.002,2072.4,2072.1,1.38452247]
[1773315025305,0.002,2072.6,2072.2,0.17702482]